[Event "Kupreichik Memorial Rapid 2019"]
[Site "Minsk"]
[Date "2019.08.17"]
[Round "10.29"]
[White "Tkachou, Viktar"]
[Black "Strizhnev, Ivan"]
[Result "0-1"]
[ECO "A05"]
[WhiteElo "1791"]
[BlackElo "1394"]
[Annotator "NA"]
[PlyCount "82"]
[EventDate "2019.08.15"]
[EventType "swiss"]
[EventCountry "BLR"]
[SourceTitle "playchess.com"]
[Source "ChessBase"]
[SourceQuality "1"]
[TimeControl "900+10"]

1. Nf3 {[%emt 0:00:00]} Nf6 {[%emt 0:00:00]} 2. c4 {[%emt 0:00:00]} c5 {[%emt 0:00:00]} 3. b3 {[%emt 0:00:00]} g6 {[%emt 0:00:00]} 4. Bb2 {[%emt 0:00:00]} Bg7 {[%emt 0:00:00]} 5. e3 {[%emt 0:00:02]} O-O {[%emt 0:00:02]} 6. Be2 {[%emt 0:00:03]} Nc6 {[%emt 0:00:07]} 7. O-O {[%emt 0:00:07]} Qc7 {[%emt 0:00:12]} 8. d4 {[%emt 0:00:07]} cxd4 {[%emt 0:00:05]} 9. exd4 {[%emt 0:00:25]} d5 {[%emt 0:00:11]} 10. c5 {[%emt 0:00:47]} Nh5 {[%emt 0:00:26]} 11. g3 {[%emt 0:00:24]} Bh3 {[%emt 0:00:55]} 12. Re1 {[%emt 0:00:03]} Nf6 {[%emt 0:00:19]} 13. Nbd2 {[%emt 0:00:14]} Nd7 {[%emt 0:00:21]} 14. Qc1 {[%emt 0:01:06]} e5 {[%emt 0:00:40]} 15. dxe5 {[%emt 0:00:05]} Ndxe5 {[%emt 0:00:04]} 16. a3 {[%emt 0:00:28]} Rfe8 {[%emt 0:00:04]} 17. b4 {[%emt 0:00:39]} a6 {[%emt 0:00:43]} 18. Nb3 {[%emt 0:00:43]} Rad8 {[%emt 0:01:51]} 19. Nxe5 {[%emt 0:01:19]} Nxe5 {[%emt 0:00:07]} 20. Nd4 {[%emt 0:00:49]} Rd7 {[%emt 0:01:31]} 21. Qc2 {[%emt 0:02:06]} Rde7 {[%emt 0:00:28]} 22. Bc3 {[%emt 0:00:08]} Nc6 {[%emt 0:00:18]} 23. Nxc6 {[%emt 0:00:52]} Qxc6 {[%emt 0:00:04]} 24. Bxg7 {[%emt 0:00:21]} d4 {[%emt 0:00:17]} 25. f3 {[%emt 0:01:22]} Kxg7 {[%emt 0:00:03]} 26. Kf2 {[%emt 0:00:31]} Re3 {[%emt 0:00:32]} 27. Qd2 {[%emt 0:00:29]} d3 {[%emt 0:00:27]} 28. Qxe3 {[%emt 0:01:38]} Rxe3 {[%emt 0:00:02]} 29. Kxe3 {[%emt 0:00:02]} dxe2 {[%emt 0:00:02]} 30. Rxe2 {[%emt 0:00:02]} Qd5 {[%emt 0:00:16]} 31. Raa2 {[%emt 0:00:51]} Be6 {[%emt 0:00:25]} 32. Rad2 {[%emt 0:00:13]} Qb3+ {[%emt 0:00:06]} 33. Rd3 {[%emt 0:00:17]} Qc4 {[%emt 0:00:05]} 34. Rd4 {[%emt 0:00:20]} Qc3+ {[%emt 0:00:05]} 35. Rd3 {[%emt 0:00:03]} Qc1+ {[%emt 0:00:16]} 36. Red2 {[%emt 0:00:46]} Bc4 {[%emt 0:00:09]} 37. Rd7 {[%emt 0:00:03]} Qe1+ {[%emt 0:00:09]} 38. Kf4 {[%emt 0:00:03]} g5+ {[%emt 0:00:09]} 39. Kxg5 {[%emt 0:00:14]} Qe5+ {[%emt 0:00:20]} 40. Kh4 {[%emt 0:00:11]} Be6 {[%emt 0:00:04]} 41. R7d4 {[%emt 0:00:28]} Qf6+ {[%emt 0:00:16]} 0-1

[Event "Kupreichik Memorial Rapid 2019"]
[Site "Minsk"]
[Date "2019.08.17"]
[Round "10.30"]
[White "Yasiukovich, Sergei"]
[Black "Kashtelyan, Valentin"]
[Result "0-1"]
[ECO "B20"]
[WhiteElo "1529"]
[BlackElo "1488"]
[Annotator "NA"]
[PlyCount "122"]
[EventDate "2019.08.15"]
[EventType "swiss"]
[EventCountry "BLR"]
[SourceTitle "playchess.com"]
[Source "ChessBase"]
[SourceQuality "1"]
[TimeControl "900+10"]

1. e4 {[%emt 0:00:00]} c5 {[%emt 0:00:09]} 2. Be2 {[%emt 0:00:00]} Nc6 {[%emt 0:00:06]} 3. f4 {[%emt 0:00:00]} e6 {[%emt 0:00:06]} 4. Nf3 {[%emt 0:00:00]} d5 {[%emt 0:00:11]} 5. d3 {[%emt 0:00:00]} dxe4 {[%emt 0:00:12]} 6. dxe4 {[%emt 0:00:01]} Qc7 {[%emt 0:01:20]} 7. O-O {[%emt 0:00:09]} Nf6 {[%emt 0:00:05]} 8. Nc3 {[%emt 0:00:20]} a6 {[%emt 0:00:03]} 9. e5 {[%emt 0:00:21]} Nd7 {[%emt 0:00:17]} 10. Ne4 {[%emt 0:01:21]} Be7 {[%emt 0:00:13]} 11. Be3 {[%emt 0:00:42]} O-O {[%emt 0:00:10]} 12. c3 {[%emt 0:02:30]} b5 {[%emt 0:00:39]} 13. Nfg5 {[%emt 0:00:41]} h6 {[%emt 0:00:31]} 14. Nh3 {[%emt 0:00:07]} Rd8 {[%emt 0:00:11]} 15. Qe1 {[%emt 0:00:05]} c4 {[%emt 0:00:39]} 16. Bf3 {[%emt 0:00:14]} Rb8 {[%emt 0:00:28]} 17. Rd1 {[%emt 0:00:33]} Bb7 {[%emt 0:00:20]} 18. Nd6 {[%emt 0:00:23]} Ba8 {[%emt 0:00:38]} 19. Qg3 {[%emt 0:00:40]} Nf8 {[%emt 0:01:02]} 20. Ne4 {[%emt 0:01:04]} Rxd1 {[%emt 0:00:19]} 21. Rxd1 {[%emt 0:00:01]} Rd8 {[%emt 0:00:10]} 22. Rxd8 {[%emt 0:01:34]} Qxd8 {[%emt 0:00:25]} 23. Nhf2 {[%emt 0:00:58]} Bb7 {[%emt 0:01:44]} 24. h3 {[%emt 0:02:02]} Na5 {[%emt 0:00:30]} 25. Ng4 {[%emt 0:00:30]} Ng6 {[%emt 0:00:33]} 26. Qe1 {[%emt 0:00:13]} Bd5 {[%emt 0:00:19]} 27. g3 {[%emt 0:00:16]} Qa8 {[%emt 0:00:49]} 28. Ngf2 {[%emt 0:00:48]} Nc6 {[%emt 0:00:22]} 29. Bh1 {[%emt 0:00:13]} b4 {[%emt 0:00:14]} 30. Qd2 {[%emt 0:00:23]} bxc3 {[%emt 0:00:23]} 31. Nxc3 {[%emt 0:00:20]} Bxh1 {[%emt 0:00:06]} 32. Nxh1 {[%emt 0:00:05]} Nb4 {[%emt 0:00:59]} 33. Nf2 {[%emt 0:00:08]} h5 {[%emt 0:01:16]} 34. a3 {[%emt 0:00:16]} Nc6 {[%emt 0:00:47]} 35. Nfe4 {[%emt 0:00:23]} Qb7 {[%emt 0:00:39]} 36. Nc5 {[%emt 0:00:46]} Bxc5 {[%emt 0:00:37]} 37. Bxc5 {[%emt 0:00:01]} Qc7 {[%emt 0:00:39]} 38. Ne4 {[%emt 0:00:36]} Na5 {[%emt 0:00:28]} 39. Qd6 {[%emt 0:00:25]} Qxd6 {[%emt 0:00:45]} 40. exd6 {[%emt 0:00:22]} h4 {[%emt 0:00:28]} 41. Bb6 {[%emt 0:00:31]} Nc6 {[%emt 0:00:14]} 42. d7 {[%emt 0:00:33]} hxg3 {[%emt 0:00:05]} 43. d8=Q+ {[%emt 0:00:17]} Nxd8 {[%emt 0:00:01]} 44. Bxd8 {[%emt 0:00:01]} Nxf4 {[%emt 0:00:05]} 45. h4 {[%emt 0:00:20]} Nd3 {[%emt 0:00:09]} 46. Kg2 {[%emt 0:00:15]} Nxb2 {[%emt 0:00:05]} 47. Kxg3 {[%emt 0:00:04]} Nd3 {[%emt 0:00:26]} 48. Ba5 {[%emt 0:00:10]} f6 {[%emt 0:01:12]} 49. Nd6 {[%emt 0:00:02]} Ne5 {[%emt 0:00:11]} 50. Bc3 {[%emt 0:00:05]} Nc6 {[%emt 0:00:21]} 51. Nxc4 {[%emt 0:00:09]} Kf7 {[%emt 0:00:11]} 52. Na5 {[%emt 0:00:15]} Ne7 {[%emt 0:00:11]} 53. Nc4 {[%emt 0:00:26]} e5 {[%emt 0:00:05]} 54. Nd6+ {[%emt 0:00:23]} Ke6 {[%emt 0:00:05]} 55. Ne8 {[%emt 0:00:16]} Kf7 {[%emt 0:00:21]} 56. Nc7 {[%emt 0:00:04]} Nf5+ {[%emt 0:00:19]} 57. Kg4 {[%emt 0:00:21]} Nd6 {[%emt 0:00:07]} 58. Nxa6 g6 {[%emt 0:00:02]} 59. Nc7 {[%emt 0:00:38]} f5+ {[%emt 0:00:03]} 60. Kh3 e4 61. a4 Nc8 0-1

[Event "Kupreichik Memorial Rapid 2019"]
[Site "Minsk"]
[Date "2019.08.17"]
[Round "10.32"]
[White "Karlov, Egor"]
[Black "Shaban, Alena"]
[Result "1/2-1/2"]
[ECO "E06"]
[WhiteElo "1728"]
[BlackElo "2030"]
[Annotator "NA"]
[PlyCount "83"]
[EventDate "2019.08.15"]
[EventType "swiss"]
[EventCountry "BLR"]
[SourceTitle "playchess.com"]
[Source "ChessBase"]
[SourceQuality "1"]
[TimeControl "900+10"]

1. d4 {[%emt 0:00:00]} d5 {[%emt 0:00:00]} 2. c4 {[%emt 0:00:00]} e6 {[%emt 0:00:00]} 3. Nf3 {[%emt 0:00:00]} Nf6 {[%emt 0:00:00]} 4. g3 {[%emt 0:00:00]} Be7 {[%emt 0:00:32]} 5. Bg2 {[%emt 0:00:00]} O-O {[%emt 0:00:01]} 6. O-O {[%emt 0:00:00]} b6 {[%emt 0:00:19]} 7. Nc3 {[%emt 0:00:14]} Bb7 {[%emt 0:00:01]} 8. Nd2 {[%emt 0:01:29]} c5 {[%emt 0:00:12]} 9. e3 {[%emt 0:02:13]} Qd7 {[%emt 0:01:28]} 10. Nf3 {[%emt 0:00:31]} cxd4 {[%emt 0:00:54]} 11. exd4 {[%emt 0:00:21]} dxc4 {[%emt 0:01:08]} 12. Ne5 {[%emt 0:00:08]} Qc8 {[%emt 0:00:18]} 13. Bxb7 {[%emt 0:00:24]} Qxb7 {[%emt 0:00:02]} 14. Nxc4 {[%emt 0:00:03]} Rd8 {[%emt 0:00:14]} 15. Ne5 {[%emt 0:00:24]} Nc6 {[%emt 0:00:14]} 16. Nxc6 {[%emt 0:00:21]} Qxc6 {[%emt 0:00:02]} 17. Be3 {[%emt 0:00:06]} e5 {[%emt 0:02:45]} 18. Ne2 {[%emt 0:00:48]} exd4 {[%emt 0:02:03]} 19. Nxd4 {[%emt 0:00:11]} Qe4 {[%emt 0:00:13]} 20. Qa4 {[%emt 0:05:17]} Bc5 {[%emt 0:02:00]} 21. Rad1 {[%emt 0:00:16]} b5 {[%emt 0:00:12]} 22. Qc2 {[%emt 0:00:59]} Qxc2 {[%emt 0:02:13]} 23. Nxc2 {[%emt 0:00:01]} Bxe3 {[%emt 0:00:19]} 24. Nxe3 {[%emt 0:00:02]} Ne4 {[%emt 0:01:03]} 25. Rfe1 {[%emt 0:01:00]} Kf8 {[%emt 0:00:25]} 26. Nd5 {[%emt 0:00:41]} Nd6 {[%emt 0:00:06]} 27. Rd3 {[%emt 0:00:29]} Rac8 {[%emt 0:00:07]} 28. Red1 {[%emt 0:00:35]} Nc4 {[%emt 0:00:11]} 29. Rb1 {[%emt 0:00:51]} Ne5 {[%emt 0:00:11]} 30. Rdd1 {[%emt 0:00:11]} Rc2 {[%emt 0:00:21]} 31. a3 {[%emt 0:02:07]} Nf3+ {[%emt 0:00:01]} 32. Kg2 {[%emt 0:00:01]} Nd2 {[%emt 0:00:01]} 33. Ne3 {[%emt 0:00:06]} Rcc8 {[%emt 0:00:26]} 34. Rbc1 {[%emt 0:00:06]} Ne4 {[%emt 0:00:20]} 35. Rxc8 {[%emt 0:00:08]} Rxc8 {[%emt 0:00:01]} 36. Rd5 {[%emt 0:00:04]} a6 {[%emt 0:00:05]} 37. Rd4 {[%emt 0:00:01]} Nc5 {[%emt 0:00:08]} 38. Rd6 {[%emt 0:00:31]} Ke7 {[%emt 0:00:04]} 39. Nf5+ {[%emt 0:00:03]} Kf8 {[%emt 0:00:13]} 40. Ne3 {[%emt 0:00:10]} Ke7 {[%emt 0:00:23]} 41. Nf5+ {[%emt 0:00:02]} Kf8 {[%emt 0:00:01]} 42. Ne3 1/2-1/2

[Event "Kupreichik Memorial Rapid 2019"]
[Site "Minsk"]
[Date "2019.08.17"]
[Round "10.33"]
[White "Stsepkina, Yauheniya"]
[Black "Patokova, Viktoriya"]
[Result "1-0"]
[ECO "D11"]
[WhiteElo "1537"]
[BlackElo "1503"]
[Annotator "NA"]
[PlyCount "111"]
[EventDate "2019.08.15"]
[EventType "swiss"]
[EventCountry "BLR"]
[SourceTitle "playchess.com"]
[Source "ChessBase"]
[SourceQuality "1"]
[TimeControl "900+10"]

1. d4 {[%emt 0:00:00]} d5 {[%emt 0:00:00]} 2. c4 {[%emt 0:00:00]} c6 {[%emt 0:00:00]} 3. Nf3 {[%emt 0:00:00]} Nf6 {[%emt 0:00:00]} 4. Qb3 {[%emt 0:00:00]} e6 {[%emt 0:00:20]} 5. g3 {[%emt 0:00:00]} Nbd7 {[%emt 0:00:04]} 6. Bg2 {[%emt 0:00:00]} Qc7 {[%emt 0:00:04]} 7. Bf4 {[%emt 0:00:08]} Bd6 {[%emt 0:00:06]} 8. Bxd6 {[%emt 0:00:14]} Qxd6 {[%emt 0:00:03]} 9. O-O {[%emt 0:00:20]} dxc4 {[%emt 0:00:12]} 10. Qxc4 {[%emt 0:00:02]} O-O {[%emt 0:00:05]} 11. Nc3 {[%emt 0:00:04]} b5 {[%emt 0:00:13]} 12. Qd3 {[%emt 0:00:29]} Bb7 {[%emt 0:00:06]} 13. Rfd1 {[%emt 0:01:10]} Rfe8 {[%emt 0:00:30]} 14. Rac1 {[%emt 0:00:19]} Rac8 {[%emt 0:00:27]} 15. Ng5 {[%emt 0:01:51]} h6 {[%emt 0:00:41]} 16. Nge4 {[%emt 0:00:14]} Nxe4 {[%emt 0:00:20]} 17. Nxe4 {[%emt 0:00:11]} Qe7 {[%emt 0:00:03]} 18. Nc5 {[%emt 0:00:08]} Nxc5 {[%emt 0:00:13]} 19. Rxc5 {[%emt 0:00:01]} Red8 {[%emt 0:00:37]} 20. Rdc1 {[%emt 0:00:31]} Qf6 {[%emt 0:00:42]} 21. e3 {[%emt 0:04:20]} Rd6 {[%emt 0:00:06]} 22. R1c2 {[%emt 0:02:08]} a6 {[%emt 0:00:52]} 23. Qd2 {[%emt 0:00:08]} Qe7 {[%emt 0:00:23]} 24. Qc1 {[%emt 0:01:23]} Qd7 {[%emt 0:00:03]} 25. b4 {[%emt 0:00:17]} Kf8 {[%emt 0:01:08]} 26. a4 {[%emt 0:00:11]} bxa4 {[%emt 0:00:48]} 27. Qa3 {[%emt 0:00:02]} Kg8 {[%emt 0:00:37]} 28. Qxa4 {[%emt 0:00:12]} Kf8 {[%emt 0:00:21]} 29. R2c4 {[%emt 0:00:49]} Kg8 {[%emt 0:00:15]} 30. Rc3 {[%emt 0:01:37]} Kf8 {[%emt 0:00:03]} 31. Ra5 {[%emt 0:01:05]} Kg8 {[%emt 0:00:31]} 32. Bf1 {[%emt 0:02:07]} Ra8 {[%emt 0:03:19]} 33. Bxa6 {[%emt 0:00:13]} Rxa6 {[%emt 0:00:19]} 34. Rxa6 {[%emt 0:00:01]} e5 {[%emt 0:00:05]} 35. Ra5 {[%emt 0:00:21]} exd4 {[%emt 0:00:05]} 36. Rd3 {[%emt 0:00:05]} dxe3 {[%emt 0:01:11]} 37. Rxd6 {[%emt 0:00:05]} Qxd6 {[%emt 0:00:04]} 38. fxe3 {[%emt 0:00:08]} Qd2 {[%emt 0:00:16]} 39. Rc5 {[%emt 0:00:22]} Qxe3+ {[%emt 0:00:17]} 40. Kf1 {[%emt 0:00:01]} Qd3+ {[%emt 0:00:29]} 41. Ke1 {[%emt 0:00:02]} Ba6 {[%emt 0:00:08]} 42. Qc2 {[%emt 0:00:23]} Qe3+ {[%emt 0:01:51]} 43. Kd1 {[%emt 0:00:05]} Qg1+ {[%emt 0:00:17]} 44. Kd2 {[%emt 0:00:02]} Qd4+ {[%emt 0:00:23]} 45. Kc1 {[%emt 0:00:19]} Qxb4 {[%emt 0:00:31]} 46. Rxc6 {[%emt 0:00:15]} Qa3+ {[%emt 0:00:44]} 47. Kd2 {[%emt 0:00:10]} Qa5+ {[%emt 0:00:15]} 48. Kc1 {[%emt 0:00:15]} Qa1+ {[%emt 0:00:13]} 49. Qb1 {[%emt 0:00:04]} Qa3+ {[%emt 0:00:37]} 50. Qb2 {[%emt 0:00:13]} Qe3+ {[%emt 0:00:13]} 51. Qd2 {[%emt 0:00:10]} Qa3+ {[%emt 0:00:39]} 52. Qb2 {[%emt 0:00:09]} Qe3+ {[%emt 0:00:24]} 53. Qd2 {[%emt 0:00:12]} Qa3+ {[%emt 0:00:02]} 54. Qb2 {[%emt 0:00:10]} Qe3+ {[%emt 0:00:16]} 55. Qd2 {[%emt 0:00:06]} Bd3 {[%emt 0:00:13]} 56. Qxe3 {[%emt 0:00:02]} 1-0

[Event "Kupreichik Memorial Rapid 2019"]
[Site "Minsk"]
[Date "2019.08.17"]
[Round "10.34"]
[White "Tarasionak, Arseni"]
[Black "Ostrovskiy, Viktor"]
[Result "1/2-1/2"]
[ECO "A46"]
[WhiteElo "1209"]
[BlackElo "1453"]
[Annotator "NA"]
[PlyCount "105"]
[EventDate "2019.08.15"]
[EventType "swiss"]
[EventCountry "BLR"]
[SourceTitle "playchess.com"]
[Source "ChessBase"]
[SourceQuality "1"]
[TimeControl "900+10"]

1. d4 {[%emt 0:00:00]} Nf6 {[%emt 0:00:00]} 2. Nf3 {[%emt 0:00:00]} c5 {[%emt 0:00:00]} 3. Bg5 {[%emt 0:00:09]} cxd4 {[%emt 0:01:31]} 4. Bxf6 {[%emt 0:00:21]} exf6 {[%emt 0:00:45]} 5. Nxd4 {[%emt 0:00:20]} Bb4+ {[%emt 0:00:06]} 6. c3 {[%emt 0:00:12]} Be7 {[%emt 0:00:06]} 7. Nf5 {[%emt 0:00:49]} O-O {[%emt 0:00:12]} 8. Nxe7+ {[%emt 0:00:00]} Qxe7 {[%emt 0:00:02]} 9. e3 {[%emt 0:01:02]} Nc6 {[%emt 0:00:03]} 10. Be2 {[%emt 0:00:02]} b6 {[%emt 0:00:10]} 11. Bf3 {[%emt 0:00:03]} Bb7 {[%emt 0:00:01]} 12. O-O {[%emt 0:00:02]} Rab8 {[%emt 0:00:15]} 13. Na3 {[%emt 0:00:17]} Ne5 {[%emt 0:00:08]} 14. Bxb7 {[%emt 0:00:03]} Rxb7 {[%emt 0:00:02]} 15. Nb5 {[%emt 0:00:37]} a6 {[%emt 0:00:39]} 16. Qd6 {[%emt 0:00:18]} Qd8 {[%emt 0:00:39]} 17. Nd4 {[%emt 0:00:24]} Nc4 {[%emt 0:01:48]} 18. Qb4 {[%emt 0:01:28]} b5 {[%emt 0:00:32]} 19. b3 {[%emt 0:00:32]} Ne5 {[%emt 0:01:55]} 20. Nf5 {[%emt 0:00:32]} Nc6 {[%emt 0:00:29]} 21. Qg4 {[%emt 0:00:26]} g6 {[%emt 0:00:47]} 22. Nd6 {[%emt 0:00:41]} Rb6 {[%emt 0:00:38]} 23. Qh4 {[%emt 0:00:44]} Qe7 {[%emt 0:00:46]} 24. Ne4 {[%emt 0:00:13]} f5 {[%emt 0:01:11]} 25. Qxe7 {[%emt 0:00:09]} Nxe7 26. Ng3 {[%emt 0:01:36]} Rc6 {[%emt 0:00:21]} 27. Rac1 {[%emt 0:01:57]} Rfc8 {[%emt 0:00:05]} 28. e4 {[%emt 0:01:24]} Rxc3 {[%emt 0:00:54]} 29. Rxc3 {[%emt 0:00:24]} Rxc3 {[%emt 0:00:02]} 30. Rd1 {[%emt 0:00:17]} Rc2 {[%emt 0:01:44]} 31. Rxd7 {[%emt 0:00:27]} Kf8 {[%emt 0:00:20]} 32. a4 {[%emt 0:00:47]} f4 {[%emt 0:00:03]} 33. Nf1 {[%emt 0:00:04]} bxa4 {[%emt 0:00:08]} 34. bxa4 {[%emt 0:00:01]} Ra2 {[%emt 0:00:03]} 35. g3 {[%emt 0:00:25]} Rxa4 {[%emt 0:00:37]} 36. Ra7 {[%emt 0:00:57]} Nc6 {[%emt 0:00:31]} 37. Ra8+ {[%emt 0:00:01]} Kg7 {[%emt 0:00:01]} 38. Nd2 {[%emt 0:00:17]} Ra2 {[%emt 0:00:22]} 39. Nf3 fxg3 {[%emt 0:00:15]} 40. hxg3 {[%emt 0:01:41]} a5 {[%emt 0:00:07]} 41. Ra6 {[%emt 0:00:24]} Nb4 {[%emt 0:00:06]} 42. Ra7 {[%emt 0:00:01]} Nd3 {[%emt 0:00:23]} 43. Ng5 {[%emt 0:00:01]} Nxf2 {[%emt 0:01:49]} 44. Rxf7+ {[%emt 0:00:58]} Kh6 {[%emt 0:00:01]} 45. Nxh7 {[%emt 0:00:01]} Nxe4 {[%emt 0:00:09]} 46. Nf8 {[%emt 0:00:32]} Ra1+ {[%emt 0:00:18]} 47. Kg2 {[%emt 0:00:06]} Ra2+ {[%emt 0:00:01]} 48. Kg1 {[%emt 0:00:12]} Ra1+ {[%emt 0:00:03]} 49. Kg2 {[%emt 0:00:05]} Ra2+ {[%emt 0:00:02]} 50. Kg1 {[%emt 0:00:16]} Nxg3 {[%emt 0:00:42]} 51. Rf6 {[%emt 0:00:26]} Kg7 {[%emt 0:00:12]} 52. Rxg6+ {[%emt 0:00:35]} Kxf8 {[%emt 0:00:03]} 53. Rxg3 {[%emt 0:00:00]} 1/2-1/2

[Event "Kupreichik Memorial Rapid 2019"]
[Site "Minsk"]
[Date "2019.08.17"]
[Round "10.36"]
[White "Ustiugov, Boris"]
[Black "Rataika, Mikalai"]
[Result "0-1"]
[ECO "E61"]
[WhiteElo "1567"]
[BlackElo "1920"]
[Annotator "NA"]
[PlyCount "82"]
[EventDate "2019.08.15"]
[EventType "swiss"]
[EventCountry "BLR"]
[SourceTitle "playchess.com"]
[Source "ChessBase"]
[SourceQuality "1"]
[TimeControl "900+10"]

1. d4 {[%emt 0:00:00]} Nf6 {[%emt 0:00:00]} 2. c4 {[%emt 0:00:00]} g6 {[%emt 0:00:00]} 3. Nc3 {[%emt 0:00:00]} Bg7 {[%emt 0:00:02]} 4. Bg5 {[%emt 0:00:00]} O-O {[%emt 0:00:04]} 5. e3 {[%emt 0:00:02]} d6 {[%emt 0:00:07]} 6. Nf3 {[%emt 0:00:16]} Na6 {[%emt 0:00:37]} 7. Be2 {[%emt 0:00:13]} c5 {[%emt 0:00:07]} 8. O-O {[%emt 0:00:18]} h6 {[%emt 0:00:23]} 9. Bh4 {[%emt 0:00:02]} Ne8 {[%emt 0:01:09]} 10. Qd2 {[%emt 0:00:34]} f5 {[%emt 0:00:19]} 11. Rad1 {[%emt 0:01:17]} Nf6 {[%emt 0:00:31]} 12. dxc5 {[%emt 0:01:41]} Nxc5 {[%emt 0:00:06]} 13. Bxf6 {[%emt 0:00:15]} Bxf6 {[%emt 0:00:16]} 14. b4 {[%emt 0:00:11]} Ne6 {[%emt 0:01:26]} 15. Nd5 {[%emt 0:00:17]} Bg7 {[%emt 0:00:17]} 16. Nh4 {[%emt 0:01:00]} Kh7 {[%emt 0:00:07]} 17. Bd3 {[%emt 0:00:48]} a6 {[%emt 0:01:40]} 18. Qc2 {[%emt 0:01:04]} Ng5 {[%emt 0:02:15]} 19. f4 {[%emt 0:00:58]} e6 {[%emt 0:00:33]} 20. fxg5 {[%emt 0:00:53]} exd5 {[%emt 0:00:08]} 21. gxh6 {[%emt 0:01:38]} Bxh6 {[%emt 0:00:51]} 22. Nf3 {[%emt 0:01:20]} Bxe3+ {[%emt 0:00:14]} 23. Kh1 {[%emt 0:00:01]} d4 {[%emt 0:00:53]} 24. Be2 {[%emt 0:00:55]} Be6 {[%emt 0:03:03]} 25. Nxd4 {[%emt 0:00:32]} Bxd4 {[%emt 0:00:02]} 26. Rxd4 {[%emt 0:00:02]} b5 {[%emt 0:00:06]} 27. c5 {[%emt 0:00:08]} Qc8 {[%emt 0:00:18]} 28. Rxd6 {[%emt 0:01:01]} a5 {[%emt 0:00:02]} 29. a3 {[%emt 0:00:32]} axb4 {[%emt 0:00:02]} 30. axb4 {[%emt 0:00:01]} Ra2 {[%emt 0:00:02]} 31. Qd3 {[%emt 0:01:11]} Bc4 {[%emt 0:00:10]} 32. Rd7+ {[%emt 0:00:07]} Kg8 {[%emt 0:00:35]} 33. Qd4 {[%emt 0:00:17]} Qxd7 {[%emt 0:00:15]} 34. Qxd7 {[%emt 0:00:22]} Rxe2 {[%emt 0:00:20]} 35. c6 {[%emt 0:00:52]} Ree8 {[%emt 0:01:02]} 36. Rd1 {[%emt 0:00:56]} Be6 {[%emt 0:00:34]} 37. Qd6 {[%emt 0:00:14]} Bb3 {[%emt 0:01:06]} 38. Qxg6+ {[%emt 0:00:41]} Kh8 {[%emt 0:00:09]} 39. Rg1 {[%emt 0:00:04]} Re6 {[%emt 0:00:13]} 40. Qh5+ {[%emt 0:00:17]} Kg7 {[%emt 0:00:09]} 41. Rc1 {[%emt 0:00:18]} Bc4 {[%emt 0:00:08]} 0-1

[Event "Kupreichik Memorial Rapid 2019"]
[Site "Minsk"]
[Date "2019.08.17"]
[Round "10.37"]
[White "Laptev, Viktor"]
[Black "Kozlov, Valentin"]
[Result "0-1"]
[ECO "B21"]
[WhiteElo "1424"]
[BlackElo "1871"]
[Annotator "NA"]
[PlyCount "84"]
[EventDate "2019.08.15"]
[EventType "swiss"]
[EventCountry "BLR"]
[SourceTitle "playchess.com"]
[Source "ChessBase"]
[SourceQuality "1"]
[TimeControl "900+10"]

1. e4 {[%emt 0:00:00]} c5 {[%emt 0:00:00]} 2. d4 {[%emt 0:00:00]} cxd4 {[%emt 0:00:00]} 3. c3 {[%emt 0:00:00]} dxc3 {[%emt 0:00:00]} 4. Nxc3 {[%emt 0:00:00]} e6 {[%emt 0:00:02]} 5. Bf4 {[%emt 0:00:18]} Be7 {[%emt 0:00:08]} 6. Nf3 {[%emt 0:00:31]} a6 {[%emt 0:00:32]} 7. Bc4 {[%emt 0:00:13]} Nf6 {[%emt 0:00:05]} 8. e5 {[%emt 0:00:04]} Nh5 {[%emt 0:00:14]} 9. Be3 {[%emt 0:00:19]} g6 {[%emt 0:01:17]} 10. Ne4 {[%emt 0:00:20]} O-O {[%emt 0:00:54]} 11. Nd6 {[%emt 0:00:54]} b5 {[%emt 0:01:17]} 12. Bb3 {[%emt 0:01:03]} Ng7 {[%emt 0:00:27]} 13. Bc2 {[%emt 0:01:22]} Nf5 {[%emt 0:00:29]} 14. Bxf5 {[%emt 0:00:49]} exf5 {[%emt 0:00:04]} 15. Bh6 {[%emt 0:00:13]} Qa5+ {[%emt 0:01:29]} 16. Bd2 {[%emt 0:01:04]} Qb6 {[%emt 0:01:18]} 17. Be3 {[%emt 0:00:04]} Qa5+ {[%emt 0:00:14]} 18. Bd2 {[%emt 0:00:02]} b4 {[%emt 0:00:18]} 19. a3 {[%emt 0:00:01]} Nc6 {[%emt 0:00:17]} 20. axb4 {[%emt 0:00:17]} Qd5 {[%emt 0:00:23]} 21. Bc3 {[%emt 0:00:44]} Qxd1+ {[%emt 0:00:12]} 22. Rxd1 {[%emt 0:00:04]} f6 {[%emt 0:01:44]} 23. Nxc8 {[%emt 0:03:12]} Raxc8 {[%emt 0:00:04]} 24. Rxd7 {[%emt 0:00:38]} fxe5 {[%emt 0:00:51]} 25. Nxe5 {[%emt 0:00:15]} Bxb4 {[%emt 0:02:00]} 26. Bxb4 {[%emt 0:01:38]} Nxe5 {[%emt 0:01:16]} 27. Rd1 {[%emt 0:00:11]} Rfe8 {[%emt 0:00:04]} 28. O-O {[%emt 0:00:05]} Ng4 {[%emt 0:01:29]} 29. h3 {[%emt 0:00:18]} Nf6 {[%emt 0:00:07]} 30. Bc3 {[%emt 0:00:04]} Ne4 {[%emt 0:00:02]} 31. Bd4 {[%emt 0:00:26]} Kf7 {[%emt 0:00:06]} 32. Rfe1 {[%emt 0:00:04]} Rcd8 {[%emt 0:00:14]} 33. f3 {[%emt 0:00:18]} Nf6 {[%emt 0:00:18]} 34. Rxe8 {[%emt 0:00:51]} Nxe8 {[%emt 0:00:13]} 35. Rd2 {[%emt 0:00:10]} Nc7 {[%emt 0:00:06]} 36. Kf2 {[%emt 0:00:15]} Ne6 {[%emt 0:00:05]} 37. Bc3 {[%emt 0:00:03]} Rxd2+ {[%emt 0:00:02]} 38. Bxd2 {[%emt 0:00:01]} Nc5 {[%emt 0:00:09]} 39. Ke3 {[%emt 0:00:09]} Ke6 {[%emt 0:00:01]} 40. Bb4 {[%emt 0:00:14]} Kd5 {[%emt 0:00:10]} 41. g4 {[%emt 0:00:50]} f4+ {[%emt 0:00:13]} 42. Kd2 {[%emt 0:00:21]} Kd4 {[%emt 0:00:18]} 0-1